Cogmind - Beta 11 X5 @@@ ROGUE MODE // 2021.06.10 @ 17:38:31 Player: Timo Result: Destroyed by S-43 Plague with Heavy Machine Gun Performance ------------- Evolutions (7) 3500 Regions Visited (16) 3200 Robots Destroyed (143) 715 Value Destroyed (6891) 6891 Prototype IDs (17) 340 Alien Tech Used (0) 0 Bonus (1533) 1533 TOTAL SCORE: 16179 Bonus ------- High Alert Combat Kills 1252 Follower Combat Kills 139 Aligned with FarCom 300 Friendly Fire -158 Cogmind --------- Core Integrity 0/1300 Matter 255/300 Energy 56/100 System Corruption 16% Temperature Cool (0) Movement Core (50) Location -3/Research Parts ------- > --- POWER (2) -------- (None) > --- PROPULSION (4) --- (None) > --- UTILITY (12) ----- Improved Target Analyzer Improved Hacking Suite > --- WEAPON (3) ------- (None) > --- INVENTORY (5) ---- Advanced Heat Sink Improved Component Analysis Suite Gamma Rifle Heavy Proton Cannon Peak State ------------ > --- POWER ------------ Makeshift Power Source Micro Fission Core > --- PROPULSION ------- Biometal Medium Treads Centrium Wheel Centrium Wheel Centrium Wheel > --- UTILITY ---------- Advanced Coolant Injector Large Storage Unit Targeting Computer Improved Target Analyzer Armor Integrity Analyzer Quantum Capacitor Improved Weapon Shielding Improved Force Field Improved Hacking Suite System Shield Advanced System Shield > --- WEAPON ----------- Dispersion Rifle Quantum Rifle HERF Cannon > --- INVENTORY -------- Biometal Medium Treads Biometal Medium Treads Improved Antigrav System Advanced Heat Sink Improved Target Analyzer Reflective Plating Thermal Shield Experimental Thermal Shield Improved Component Analysis Suite Gamma Rifle Gamma Rifle Heavy Proton Cannon Guided Plasma Cannon [Rating: 123] Favorites ----------- Power Micro Nuclear Core Engine Light Ion Engine Power Core Micro Nuclear Core Reactor Light Antimatter Reactor Propulsion Armored Treads Treads Armored Treads Leg Flexi-carbon Leg Wheel Centrium Wheel Hover Unit Antigrav System Utility Large Storage Unit Device Advanced Heat Sink Storage Large Storage Unit Processor Targeting Computer Hackware System Shield Protection Layered Medium Armor Plating Weapon Guided Plasma Cannon Energy Gun High-powered Shock Rifle Energy Cannon Guided Plasma Cannon Ballistic Gun Assault Rifle Ballistic Cannon Mini Assault Cannon Launcher Micro-nuke Launcher Slashing Weapon Katana Build | -11 -10 -10 -10 -9 -8 -7 -6 -5 -5 -5 -4 -4 -4 -4 -3 -3 ------- Run | Scr Mat Min Exi Min Mat Fac Fac Fac Upp Upp Fac Upp Upp Zhi Pro Res Slots Evolved 14 | . . . . . 4 2 2 2 . . 2 . . . . 2 Power 1 | . . . . . 1 . . . . . . . . . . . Propulsion 2 | . . . . . . 1 . 1 . . . . . . . . Utility 10 | . . . . . 2 1 2 1 . . 2 . . . . 2 Weapon 1 | . . . . . 1 . . . . . . . . . . . Parts Attached 288 | . 6 . 1 . 14 23 93 42 3 1 49 5 11 . 3 37 Power 17 | . . . . . 3 2 4 2 . . 5 . 1 . . . Engine 7 | . . . . . 1 1 1 2 . . 1 . 1 . . . Core 8 | . . . . . 2 1 3 . . . 2 . . . . . Reactor 2 | . . . . . . . . . . . 2 . . . . . Propulsion 39 | . 2 . . . 3 4 3 4 . . 12 2 3 . . 6 Treads 19 | . 2 . . . 3 4 3 2 . . 1 . . . . 4 Leg 11 | . . . . . . . . 2 . . 8 . 1 . . . Wheel 4 | . . . . . . . . . . . . 1 2 . . 1 Hover 5 | . . . . . . . . . . . 3 1 . . . 1 Flight . | . . . . . . . . . . . . . . . . . Utility 174 | . 4 . . . 6 13 66 30 1 1 21 1 5 . 3 23 Device 144 | . 1 . . . 4 11 58 27 . 1 17 1 3 . 3 18 Storage 3 | . 2 . . . . . . . . . 1 . . . . . Processor 9 | . . . . . 2 . 1 1 1 . 2 . 1 . . 1 Hackware 3 | . . . . . . . . . . . . . 1 . . 2 Protection 15 | . 1 . . . . 2 7 2 . . 1 . . . . 2 Artifact . | . . . . . . . . . . . . . . . . . Weapon 58 | . . . 1 . 2 4 20 6 2 . 11 2 2 . . 8 Energy Gun 20 | . . . . . 1 1 . 2 . . 8 1 2 . . 5 Energy Cannon 22 | . . . 1 . . . 13 3 1 . 1 . . . . 3 Ballistic Gun 5 | . . . . . 1 1 3 . . . . . . . . . Ballistic Cannon 6 | . . . . . . 1 4 1 . . . . . . . . Launcher 3 | . . . . . . 1 . . . . 1 1 . . . . Special Weapon . | . . . . . . . . . . . . . . . . . Impact Weapon . | . . . . . . . . . . . . . . . . . Slashing Weapon 2 | . . . . . . . . . 1 . 1 . . . . . Piercing Weapon . | . . . . . . . . . . . . . . . . . Special Melee Weapon . | . . . . . . . . . . . . . . . . . Unidentified Prototypes 3 | . . . 1 . 1 . . . . . . . . . . 1 Corrupted Parts 4 | . . . . . . . . 1 . . 1 . 2 . . . System Corruption 13 | . . . . . . . . 3 . . 2 . 8 . . . Parts Lost 91 | . . . . . 3 . 6 21 . . 16 8 9 . . 28 Power 12 | . . . . . 2 . 2 3 . . 3 . . . . 2 Propulsion 21 | . . . . . 1 . . 5 . . 3 2 3 . . 7 Utility 41 | . . . . . . . 4 11 . . 5 3 4 . . 14 Weapon 17 | . . . . . . . . 2 . . 5 3 2 . . 5 Highest Loss Streak 25 | . . . . . 2 . 4 19 . . 6 5 9 . . 25 Average Slot Usage (%) 88 | . 97 100 100 100 78 95 99 94 20 25 73 78 76 . 82 86 Engine 4 | . 14 14 14 14 8 3 3 1 . . . . 3 . 5 3 Core 6 | . . . . . 8 11 8 9 . . 5 5 5 . 5 3 Treads 14 | . 8 28 28 28 18 21 19 19 . . 1 . . . . 3 Leg 3 | . 19 . . . . . . . . . 13 17 5 . 5 . Wheel 1 | . . . . . . . . . . . . 1 13 . 15 12 Device 15 | . 6 14 14 14 5 12 22 23 . 2 14 18 11 . 13 16 Storage 6 | . 14 14 14 14 9 7 6 4 . . 2 5 5 . 5 3 Processor 13 | . . . . . 18 15 13 11 14 17 19 15 20 . 21 14 Hackware 1 | . . . . . . . . . . . . . 3 . 5 12 Protection 2 | . 5 . . . . 1 3 3 . . 1 2 . . . 2 Energy Gun 2 | . . . . . . 5 . 1 . . 8 6 5 . 5 6 Energy Cannon 6 | . . . 3 14 9 7 13 8 . . . . . . . 2 Ballistic Gun 4 | . 28 28 24 14 1 6 . 3 . . . . . . . . Ballistic Cannon 1 | . . . . . . . 5 1 . . . . . . . . Naked Turns . | . . . . . . . . . . . . . . . . . Heaviest Build 82 | 12 28 28 36 36 42 59 82 72 12 3 71 67 47 47 59 72 Greatest Support 85 | 20 40 40 40 40 42 70 82 73 3 3 85 85 48 48 48 57 Greatest Overweight (x) 4 | . . . . . 1 . 1 3 3 . 4 . 1 . 1 2 Average Overweight (x) . | . . . . . . . . . . . . . . . . . Largest Inventory Capacity 15 | 8 15 15 15 15 15 15 15 15 5 5 15 15 15 15 15 15 Average Capacity 13 | 8 10 15 15 15 15 15 15 14 5 5 10 15 15 15 15 14 Most Carried 15 | 6 13 13 15 15 15 15 15 15 5 5 15 15 15 9 14 15 Average Carried 12 | 6 7 13 13 14 14 13 14 14 4 4 8 14 7 9 12 12 Final Capacity 15 | 8 15 15 15 15 15 15 15 5 5 5 15 15 15 15 15 5 Final Carried 15 | 6 13 13 14 15 15 15 15 5 5 5 15 15 9 9 13 4 Class Distribution -------------------- 61% | Mutant 12% | Scavenger-Mutant 8% | Skirmisher 7% | Scavenger-Skirmisher 3% | Derelict-Mutant 3% | Hacker-Mutant Dominant Class ---------------- Mutant | -10/Materials Mutant | -10/Mines Mutant | -10/Exiles Mutant | -9/Mines Mutant | -8/Materials Mutant | -7/Factory Mutant | -6/Factory Mutant | -5/Factory Mutant | -5/Upper Caves Mutant | -5/Upper Caves Scavenger-Skirmisher | -4/Factory Scavenger-Mutant | -4/Upper Caves Scavenger-Mutant | -4/Upper Caves Scavenger-Mutant | -4/Zhirov Scavenger-Mutant | -3/Proximity Caves Derelict-Mutant | -3/Research Resources | -11 -10 -10 -10 -9 -8 -7 -6 -5 -5 -5 -4 -4 -4 -4 -3 -3 ----------- Run | Scr Mat Min Exi Min Mat Fac Fac Fac Upp Upp Fac Upp Upp Zhi Pro Res Matter Collected 4371 | 200 149 . 31 13 159 202 1469 667 54 20 906 128 157 . 28 188 Remotely . | . . . . . . . . . . . . . . . . . Salvage Created 6598 | . 227 . . . 844 391 1448 1308 98 . 1835 60 60 . . 327 Parts 344 | . 12 . . . 51 34 74 51 3 . 91 7 4 . . 17 Haulers Intercepted 3 | . . . . . . . 2 . . . 1 . . . . . Recyclers Shooed 6 | . . . . . . . 1 1 . . 2 . . . . 2 Parts Field Recycled . | . . . . . . . . . . . . . . . . . Retrieved Matter . | . . . . . . . . . . . . . . . . . Parts Self-Destructed 7 | . . . . . . . . . 3 . . 4 . . . . Prevented 5 | . . . . . . . . . 1 . . . 4 . . . Kills | -11 -10 -10 -10 -9 -8 -7 -6 -5 -5 -5 -4 -4 -4 -4 -3 -3 ------- Run | Scr Mat Min Exi Min Mat Fac Fac Fac Upp Upp Fac Upp Upp Zhi Pro Res Combat Hostiles Destroyed 114 | . 5 . . . 17 6 29 18 2 . 29 2 1 . . 5 Melee 4 | . . . . . . . . . . . 3 1 . . . . Guns 28 | . 5 . . . . 1 3 7 . . 7 1 . . . 4 Cannons 57 | . . . . . 16 5 23 10 2 . 1 . . . . . AOE 20 | . . . . . . . 2 . . . 18 . . . . . Classes Destroyed 18 | . 2 . . . 5 1 2 2 . . 5 1 . . . . Worker 4 | . . . . . . . . 1 . . 3 . . . . . Builder 7 | . . . . . 1 . 1 . . . 5 . . . . . Tunneler 1 | . . . . . . . . . . . 1 . . . . . Hauler 3 | . . . . . . . 2 . . . 1 . . . . . Recycler 3 | . . . . . . . . 2 . . 1 . . . . . Carrier 1 | . . . . . . . . . . . 1 . . . . . Operator 1 | . . . . . . . 1 . . . . . . . . . Watcher 9 | . 1 . . . 2 2 1 2 . . 1 . . . . . Swarmer 13 | . . . . . 3 . 7 2 1 . . . . . . . Saboteur 1 | . . . . . . . . . . . 1 . . . . . Grunt 38 | . 5 . . . 7 . 7 6 . . 13 . . . . . Brawler 1 | . . . . . . . . . . . 1 . . . . . Duelist 1 | . . . . . 1 . . . . . . . . . . . Protector 1 | . . . . . . . . . . . 1 . . . . . Sentry 20 | . . . . . 5 2 6 2 1 . 3 . . . . 1 Hunter 9 | . . . . . 1 1 2 2 . . 3 . . . . . Programmer 29 | . . . . . . 3 7 6 . . 7 1 1 . . 4 Behemoth 1 | . . . . . . . . . . . . 1 . . . . Best Kill Streak 7 | . 2 . . . 4 1 5 6 2 . 7 1 1 . . 3 Combat Bots Only 5 | . 2 . . . 3 1 4 5 2 . 5 1 1 . . 3 Max Kills in Single Turn 4 | . 1 . . . 1 1 2 2 1 . 4 1 1 . . 1 Gunslinging . | . . . . . . . . . . . . . . . . . Exploded 4 | . . . . . . . 1 . . . 4 . . . . . Melee 1 | . . . . . . . . . . . 1 1 . . . . Uniques/NPCs Destroyed . | . . . . . . . . . . . . . . . . . Combat | -11 -10 -10 -10 -9 -8 -7 -6 -5 -5 -5 -4 -4 -4 -4 -3 -3 -------- Run | Scr Mat Min Exi Min Mat Fac Fac Fac Upp Upp Fac Upp Upp Zhi Pro Res Damage Taken 12754 | . 239 . . . 546 106 2192 1700 40 . 2559 850 686 . 119 3717 Core 3054 | . 59 . . . 48 31 234 477 16 . 645 101 122 . 19 1302 Absorbed by Shields 328 | . . . . . . . 187 . . . . . . . 52 89 Core Remaining (%) 72 | 100 . . . 76 91 95 72 . . 50 . . . . 22 . Volleys Fired 447 | . 20 . . 3 65 20 102 59 4 . 74 17 26 . . 57 Largest 3 | . 2 . . 1 1 2 3 3 1 . 3 2 2 . . 3 Hottest 270 | . 40 . . 120 120 120 160 207 120 . 200 123 125 . . 270 Shots Fired 667 | . 40 . . 3 65 22 169 132 4 . 111 20 35 . . 66 Gun 309 | . 40 . . 1 17 6 15 40 . . 81 9 35 . . 65 Cannon 323 | . . . . 2 48 15 154 92 4 . 7 . . . . 1 Launcher 35 | . . . . . . 1 . . . . 23 11 . . . . Special . | . . . . . . . . . . . . . . . . . Kinetic 154 | . 40 . . 1 12 3 52 46 . . . . . . . . Thermal 347 | . . . . 2 53 18 117 56 4 . 40 6 . . . 51 Explosive 34 | . . . . . . . . . . . 23 11 . . . . Electromagnetic 132 | . . . . . . 1 . 30 . . 48 3 35 . . 15 Robot Hit Streak 28 | . 8 . . . 19 27 28 23 4 . 7 6 5 . . 26 Robot Miss Streak 6 | . 1 . . . 1 . 3 6 . . 4 2 1 . . 3 Penetration Max 1 | . . . . . . . 1 . . . . . . . . . Secondary Targets 2 | . . . . . . . . . . . 2 . . . . . Max Gunslinging Chain 1 | . . . . . . . . . . . 1 . . . . . Capacitor 37 | . . . . . . . . . . . 15 . . . . 22 Shots Hit Robots 408 | . 29 . . . 37 8 98 81 2 . 67 14 22 . . 50 Core Hits 262 | . 12 . . . 23 11 50 41 2 . 92 9 7 . . 15 Critical Kills 1 | . . . . . . . 1 . . . . . . . . . Critical Parts Destroyed 1 | . . . . . . . . . . . . . . . . 1 Critical Strikes 20 | . . . . . . . 3 5 . . 7 1 2 . . 2 Burn 4 | . . . . . . . . . . . 3 1 . . . . Meltdown 1 | . . . . . . . 1 . . . . . . . . . Destroy 1 | . . . . . . . . . . . . . . . . 1 Blast 6 | . . . . . . . 2 4 . . . . . . . . Corrupt 5 | . . . . . . . . 1 . . 1 . 2 . . 1 Sever 3 | . . . . . . . . . . . 3 . . . . . Melee Attacks 13 | . . . . . . . . . . . 13 . . . . . Impact . | . . . . . . . . . . . . . . . . . Slashing 13 | . . . . . . . . . . . 13 . . . . . Piercing . | . . . . . . . . . . . . . . . . . Sneak Attacks . | . . . . . . . . . . . . . . . . . Combat Hostiles . | . . . . . . . . . . . . . . . . . Follow-up Attacks . | . . . . . . . . . . . . . . . . . Damage Inflicted 17756 | . 373 . . 38 1873 693 4013 2720 143 . 5472 918 105 . . 1408 Guns 4064 | . 373 . . . 204 124 299 585 . . 890 100 105 . . 1384 Cannons 8373 | . . . . 38 1665 569 3595 2107 143 . 248 . . . . 8 Explosions 4852 | . . . . . . . 119 . . . 4024 709 . . . . Melee 308 | . . . . . . . . . . . 308 . . . . . Ramming 159 | . . . . . 4 . . 28 . . 2 109 . . . 16 Kinetic 2751 | . 373 . . . 117 82 1295 884 . . . . . . . . Thermal 8906 | . . . . 38 1752 611 2660 1338 143 . 997 81 . . . 1286 Explosive 4393 | . . . . . . . 58 . . . 3626 709 . . . . Electromagnetic 1239 | . . . . . . . . 470 . . 539 19 105 . . 106 Impact . | . . . . . . . . . . . . . . . . . Slashing 308 | . . . . . . . . . . . 308 . . . . . Piercing . | . . . . . . . . . . . . . . . . . Highest Corruption 27 | . . . . . . 1 1 5 5 5 10 14 27 27 27 16 Average Corruption 7 | . . . . . . 1 1 1 5 5 8 11 25 27 27 4 Corruption Purged 1 | . . . . . . . . 1 . . . . . . . . Effects 118 | . . . . . . 3 3 1 6 2 37 12 27 . 14 13 Message Errors 33 | . . . . . . 3 3 . . . 7 2 5 . 6 7 Matter Fused 27 | . . . . . . . . . 4 1 7 7 7 . . 1 Heat Flow Errors 15 | . . . . . . . . . 1 . 5 1 4 . 2 2 Energy Discharges 11 | . . . . . . . . . . 1 6 2 1 . . 1 Parts Rejected 2 | . . . . . . . . . . . 2 . . . . . Data Loss (minor) 14 | . . . . . . . . 1 1 . 5 . 5 . 2 . Data Loss (major) 7 | . . . . . . . . . . . 2 . 1 . 4 . Misfires 5 | . . . . . . . . . . . 3 . 2 . . . Misdirections 3 | . . . . . . . . . . . . . 1 . . 2 Weapon Failures 1 | . . . . . . . . . . . . . 1 . . . Overload Shots 1 | . . . . . . . 1 . . . . . . . . . Overflow Damage 450 | . . . . . 55 1 58 54 . . 257 25 . . . . Projectiles 176 | . . . . . 55 1 58 54 . . 8 . . . . . Explosions 274 | . . . . . . . . . . . 249 25 . . . . Melee . | . . . . . . . . . . . . . . . . . Knockbacks 18 | . . . . . . . 11 7 . . . . . . . . Impact . | . . . . . . . . . . . . . . . . . Kinetic 18 | . . . . . . . 11 7 . . . . . . . . Secondary . | . . . . . . . . . . . . . . . . . Self-Inflicted Damage 222 | . . . . . . . . 6 . . 124 85 . . . 7 Shots 4 | . . . . . . . . . . . 3 1 . . . . Rammed 20 | . . . . . 1 . . 10 . . 1 . . . . 8 Targets Rammed 44 | . . . . . 1 . . 12 . . 1 22 . . . 8 Kicked 24 | . . . . . . . . 2 . . . 22 . . . . Crushed . | . . . . . . . . . . . . . . . . . Highest Temperature 362 | . 29 . . 80 335 168 328 285 135 . 362 175 257 . 235 218 Average Temperature 98 | . 11 . . 42 121 59 99 88 55 . 100 48 105 . 123 101 Received Heat Transfer 1956 | . 147 . . . 252 . 712 180 . . 207 18 . . . 440 Effects 6 | . . . . . 5 . . . . . 1 . . . . . Shutdowns 1 | . . . . . 1 . . . . . . . . . . . Energy Bleed 1 | . . . . . 1 . . . . . . . . . . . Interference 4 | . . . . . 3 . . . . . 1 . . . . . Siege Activations . | . . . . . . . . . . . . . . . . . Robots Corrupted 2 | . . . . . . . . 1 . . . . 1 . . . Combat Hostiles 2 | . . . . . . . . 1 . . . . 1 . . . Parts Fried 9 | . . . . . . . 1 1 . . 2 . 5 . . . Impact Corruptions . | . . . . . . . . . . . . . . . . . Robots Melted 3 | . . . . . 1 . 1 . . . . . . . . 1 Combat Hostiles 3 | . . . . . 1 . 1 . . . . . . . . 1 Parts Melted 26 | . . . . . 11 1 6 4 1 . 1 . . . . 2 Heat Transferred 15713 | . . . . 80 3945 1274 4504 1986 320 . 1828 222 . . . 1554 Parts Sabotaged 2 | . . . . . . . . 2 . . . . . . . . Parts Stolen . | . . . . . . . . . . . . . . . . . Parts Stripped . | . . . . . . . . . . . . . . . . . Power Chain Reactions 2 | . . . . . . . . . . . 2 . . . . . Missiles Intercepted . | . . . . . . . . . . . . . . . . . Alert | -11 -10 -10 -10 -9 -8 -7 -6 -5 -5 -5 -4 -4 -4 -4 -3 -3 ------- Run | Scr Mat Min Exi Min Mat Fac Fac Fac Upp Upp Fac Upp Upp Zhi Pro Res Peak Influence 1806 | . 175 . . . 320 430 432 737 . . 1806 . . . . 145 Initial 214 | . . . . . . 90 163 211 . . 214 . . . . . Average 203 | . 44 . . . 146 220 183 154 . . 653 . . . . 13 Maximum Alert Level 5 | . . . . . 1 2 2 3 . . 5 . . . . . Low Security (%) 62 | 100 100 100 . 100 59 58 57 63 . . 21 . . . . 100 Level 1 25 | . . . . . 40 10 32 33 . . 36 . . . . . Level 2 7 | . . . . . . 30 9 . . . 9 . . . . . Level 3 . | . . . . . . . . 2 . . 6 . . . . . Level 4 . | . . . . . . . . . . . 7 . . . . . Level 5 2 | . . . . . . . . . . . 18 . . . . . High Security . | . . . . . . . . . . . . . . . . . Max Security . | . . . . . . . . . . . . . . . . . Squads Dispatched 37 | . 2 . . 1 . 4 10 6 . . 9 . . . . 5 Investigation 3 | . . . . 1 . . 1 . . . 1 . . . . . Extermination 17 | . . . . . . 3 7 3 . . 2 . . . . 2 Reinforcement 10 | . 2 . . . . 1 1 2 . . 3 . . . . 1 Assault 4 | . . . . . . . 1 . . . 3 . . . . . Garrison 3 | . . . . . . . . 1 . . . . . . . 2 Intercept . | . . . . . . . . . . . . . . . . . Construction Impeded 3 | . . . . . . . . 1 . . 1 . . . . 1 Haulers Reinforced 1 | . . . . . . . . . . . 1 . . . . . Cargo Convoy Interrupts 2 | . . . . . . . . 1 . . 1 . . . . . Stealth | -11 -10 -10 -10 -9 -8 -7 -6 -5 -5 -5 -4 -4 -4 -4 -3 -3 --------- Run | Scr Mat Min Exi Min Mat Fac Fac Fac Upp Upp Fac Upp Upp Zhi Pro Res Distress Signals 17 | . . . . . 8 . . 2 . . 7 . . . . . Communications Jammed . | . . . . . . . . . . . . . . . . . Distress Signals . | . . . . . . . . . . . . . . . . . Times Spotted 245 | . 15 . . . 39 9 34 41 3 . 63 2 1 . 2 36 Peak Tracking Total 19 | . 4 . . . 6 2 4 16 3 . 8 1 1 . 2 19 Tactical Retreats 17 | . 4 . . . 8 . . . . . . . . . . 5 Traps | -11 -10 -10 -10 -9 -8 -7 -6 -5 -5 -5 -4 -4 -4 -4 -3 -3 ------- Run | Scr Mat Min Exi Min Mat Fac Fac Fac Upp Upp Fac Upp Upp Zhi Pro Res Traps Triggered 6 | . . . . . . 2 1 . . . . . . . . 3 Indirectly 2 | . . . . . . 2 . . . . . . . . . . Trap Hack Attempts . | . . . . . . . . . . . . . . . . . Triggered . | . . . . . . . . . . . . . . . . . Disarmed . | . . . . . . . . . . . . . . . . . Reprogrammed 6 | . . . . . . . 6 . . . . . . . . . Reused 1 | . . . . . . . 1 . . . . . . . . . Traps Extracted . | . . . . . . . . . . . . . . . . . Installed . | . . . . . . . . . . . . . . . . . Triggered 5 | . . . . . . . 1 . . . 4 . . . . . Machines | -11 -10 -10 -10 -9 -8 -7 -6 -5 -5 -5 -4 -4 -4 -4 -3 -3 ---------- Run | Scr Mat Min Exi Min Mat Fac Fac Fac Upp Upp Fac Upp Upp Zhi Pro Res Machines Disabled 18 | . . . . . . . 6 1 . . 11 . . . . . Max in Single Turn 4 | . . . . . . . 3 1 . . 4 . . . . . Garrison Access 2 | . . . . . . . 2 . . . . . . . . . Machines Sabotaged . | . . . . . . . . . . . . . . . . . Garrisons Compromised 1 | . . . . . . . . . . . 1 . . . . . Overloaded Fab Kills . | . . . . . . . . . . . . . . . . . Fab Network Shutdowns 1 | . . . . . . 1 . . . . . . . . . . Hacking | -11 -10 -10 -10 -9 -8 -7 -6 -5 -5 -5 -4 -4 -4 -4 -3 -3 --------- Run | Scr Mat Min Exi Min Mat Fac Fac Fac Upp Upp Fac Upp Upp Zhi Pro Res Machines Accessed 32 | . 3 . 1 1 3 5 12 4 . . 1 . . . . 2 Terminals 12 | . 2 . . . 2 2 4 2 . . . . . . . . Fabricators 4 | . . . . . . 1 2 . . . 1 . . . . . Repair Stations 3 | . . . . . 1 . 2 . . . . . . . . . Recycling Units 2 | . 1 . . . . 1 . . . . . . . . . . Scanalyzers 3 | . . . . . . . 2 1 . . . . . . . . Garrison Access 6 | . . . . . . 1 2 1 . . . . . . . 2 Total Hacks 73 | . 5 . 1 1 8 11 31 10 . . 2 . . . . 4 Successful 44 | . 4 . 1 1 3 7 19 8 . . 1 . . . . . Failed 29 | . 1 . . . 5 4 12 2 . . 1 . . . . 4 Catastrophic 5 | . . . . . . 1 1 1 . . 1 . . . . 1 Database Lockouts . | . . . . . . . . . . . . . . . . . Manual 24 | . 3 . 1 . 5 3 4 6 . . . . . . . 2 Terminals 31 | . 4 . . . 6 5 9 7 . . . . . . . . Fabricators 7 | . . . . . . 2 3 . . . 2 . . . . . Repair Stations 11 | . . . . . 2 . 9 . . . . . . . . . Recycling Units 4 | . 1 . . . . 3 . . . . . . . . . . Scanalyzers 9 | . . . . . . . 7 2 . . . . . . . . Garrison Access 9 | . . . . . . 1 3 1 . . . . . . . 4 Terminal Hacks 12 | . 1 . 1 1 1 2 3 3 . . . . . . . . Record 1 | . . . 1 . . . . . . . . . . . . . Prototype ID Bank 1 | . . . . . . 1 . . . . . . . . . . Open Door 1 | . . . . 1 . . . . . . . . . . . . Terminal Index 2 | . 1 . . . . . . 1 . . . . . . . . Alert Level 3 | . . . . . 1 . 1 1 . . . . . . . . Unreport Threat 1 | . . . . . . . . 1 . . . . . . . . Locate Traps 1 | . . . . . . 1 . . . . . . . . . . Reprogram Traps 1 | . . . . . . . 1 . . . . . . . . . Transport Status 1 | . . . . . . . 1 . . . . . . . . . Fabricator Hacks 2 | . . . . . . 1 . . . . 1 . . . . . Load Schematic 1 | . . . . . . . . . . . 1 . . . . . Build 1 | . . . . . . 1 . . . . . . . . . . Repair Station Hacks 6 | . . . . . 1 . 5 . . . . . . . . . Scan Component 4 | . . . . . 1 . 3 . . . . . . . . . Repair 2 | . . . . . . . 2 . . . . . . . . . Recycling Unit Hacks 4 | . 1 . . . . 3 . . . . . . . . . . Process 1 | . . . . . . 1 . . . . . . . . . . Report Inventory 2 | . 1 . . . . 1 . . . . . . . . . . Retrieve Matter 1 | . . . . . . 1 . . . . . . . . . . Scanalyzer 7 | . . . . . . . 5 2 . . . . . . . . Insert Component 3 | . . . . . . . 2 1 . . . . . . . . Analyze 4 | . . . . . . . 3 1 . . . . . . . . Garrison Access Hacks 2 | . . . . . . . 2 . . . . . . . . . Seal Access 2 | . . . . . . . 2 . . . . . . . . . Unauthorized Hacks 11 | . 2 . . . 1 1 4 3 . . . . . . . . Terminals 9 | . 2 . . . 1 1 3 2 . . . . . . . . Assimilate 1 | . . . . . . . 1 . . . . . . . . . Botnet 5 | . 1 . . . 1 1 1 1 . . . . . . . . Operators 3 | . 1 . . . . . 1 1 . . . . . . . . Fabricators . | . . . . . . . . . . . . . . . . . Repair Stations 1 | . . . . . . . 1 . . . . . . . . . Mechanics 1 | . . . . . . . 1 . . . . . . . . . Recycling Units . | . . . . . . . . . . . . . . . . . Scanalyzers . | . . . . . . . . . . . . . . . . . Garrison Access 1 | . . . . . . . . 1 . . . . . . . . Reprogram 1 | . . . . . . . . 1 . . . . . . . . Data Cores Recovered . | . . . . . . . . . . . . . . . . . Used . | . . . . . . . . . . . . . . . . . Hacking Detections 24 | . 2 . . . 2 4 10 3 . . 1 . . . . 2 Full Trace Events 1 | . . . . . . . 1 . . . . . . . . . Feedback Events . | . . . . . . . . . . . . . . . . . Feedback Blocked . | . . . . . . . . . . . . . . . . . Robot Schematics Acquired . | . . . . . . . . . . . . . . . . . Robots Built 1 | . . . . . . 1 . . . . . . . . . . Matter 186 | . . . . . . 186 . . . . . . . . . . Time 49 | . . . . . . 49 . . . . . . . . . . Total Robot Build Rating 2 | . . . . . . 2 . . . . . . . . . . Part Schematics Acquired 2 | . . . . . . . 1 1 . . . . . . . . Parts Built . | . . . . . . . . . . . . . . . . . Matter . | . . . . . . . . . . . . . . . . . Time . | . . . . . . . . . . . . . . . . . Total Part Build Rating . | . . . . . . . . . . . . . . . . . Parts Repaired 2 | . . . . . . . 2 . . . . . . . . . Time 82 | . . . . . . . 82 . . . . . . . . . Parts Recycled . | . . . . . . . . . . . . . . . . . Recycled Matter 27 | . . . . . . 27 . . . . . . . . . . Retrieved Matter 27 | . . . . . . 27 . . . . . . . . . . Retrieved Components . | . . . . . . . . . . . . . . . . . Parts Scanalyzed 3 | . . . . . . . 2 1 . . . . . . . . Part Schematics Acquired 2 | . . . . . . . 1 1 . . . . . . . . Parts Damaged . | . . . . . . . . . . . . . . . . . Bothacking | -11 -10 -10 -10 -9 -8 -7 -6 -5 -5 -5 -4 -4 -4 -4 -3 -3 ------------ Run | Scr Mat Min Exi Min Mat Fac Fac Fac Upp Upp Fac Upp Upp Zhi Pro Res Used RIF Installer . | . . . . . . . . . . . . . . . . . Robots Hacked . | . . . . . . . . . . . . . . . . . Non-combat . | . . . . . . . . . . . . . . . . . Combat . | . . . . . . . . . . . . . . . . . Robot Hacks Applied . | . . . . . . . . . . . . . . . . . Relay Couplers Released . | . . . . . . . . . . . . . . . . . Robots Rewired . | . . . . . . . . . . . . . . . . . Allies Hacked . | . . . . . . . . . . . . . . . . . Hacks Repelled . | . . . . . . . . . . . . . . . . . Allies | -11 -10 -10 -10 -9 -8 -7 -6 -5 -5 -5 -4 -4 -4 -4 -3 -3 -------- Run | Scr Mat Min Exi Min Mat Fac Fac Fac Upp Upp Fac Upp Upp Zhi Pro Res Total Allies 25 | . . . . . . 1 1 2 . . 21 . . . . . Largest Group 18 | . . . . . . 1 1 2 . . 18 . . . . . Highest-Rated Group 946 | . . . . . . 27 26 58 . . 946 . . . . . Highest-Rated Ally 74 | . . . . . . 27 26 29 . . 74 . . . . . Total Orders 3 | . . . . . . 1 . . . . 2 . . . . . GUARD 1 | . . . . . . 1 . . . . . . . . . . EXPLORE 2 | . . . . . . . . . . . 2 . . . . . Ally Attacks 122 | . . . . . . . . 10 . . 112 . . . . . Total Damage 2964 | . . . . . . . . 156 . . 2808 . . . . . Kills 15 | . . . . . . . . . . . 15 . . . . . Allies Corrupted 1 | . . . . . . . . . . . 1 . . . . . Allies Melted 1 | . . . . . 1 . . . . . . . . . . . Intel | -11 -10 -10 -10 -9 -8 -7 -6 -5 -5 -5 -4 -4 -4 -4 -3 -3 ------- Run | Scr Mat Min Exi Min Mat Fac Fac Fac Upp Upp Fac Upp Upp Zhi Pro Res Robot Analysis Total . | . . . . . . . . . . . . . . . . . Derelict Logs Recovered 3 | . . . . . . . . . 1 2 . . . . . . Drone Launches 4 | . . . . . . . . . . . 4 . . . . . Drone Recoveries 1 | . . . . . . . . . . . 1 . . . . . Exploration | -11 -10 -10 -10 -9 -8 -7 -6 -5 -5 -5 -4 -4 -4 -4 -3 -3 ------------- Run | Scr Mat Min Exi Min Mat Fac Fac Fac Upp Upp Fac Upp Upp Zhi Pro Res Turns Passed 13932 | 5 818 124 715 228 1608 1258 3915 1133 357 77 1351 410 480 4 382 1067 Spaces Moved 8242 | 5 481 78 446 134 662 686 1717 453 658 150 905 283 425 5 367 787 Core 1136 | . . . . . . . . 1 658 150 191 . . . . 136 Treads 4462 | . 137 78 446 134 662 686 1717 444 . . 143 . . . . 15 Legs 1198 | 5 344 . . . . . . 8 . . 553 283 5 . . . Wheels 1428 | . . . . . . . . . . . . . 420 5 367 636 Hover 18 | . . . . . . . . . . . 18 . . . . . Flight . | . . . . . . . . . . . . . . . . . Fastest Speed 50 | 120 120 160 160 160 157 157 158 50 50 50 50 120 90 90 90 50 Average Speed 132 | 120 131 160 160 160 188 158 170 160 50 50 108 120 92 90 100 93 Slowest Speed 360 | 120 160 160 160 160 270 161 265 360 200 50 250 120 200 90 110 145 Overloaded Moves . | . . . . . . . . . . . . . . . . . Propulsion Burnouts . | . . . . . . . . . . . . . . . . . Robots Hopped . | . . . . . . . . . . . . . . . . . Cave-ins Triggered . | . . . . . . . . . . . . . . . . . Exploration Rate (%) 36 | 2 51 16 77 42 41 17 37 9 83 20 16 52 67 7 59 22 Regions Visited 16 Branch Regions 9 Pre-discovered Areas 1 | . . 1 . . . . . . . . . . . . . . Known Exits Taken . | . . . . . . . . . . . . . . . . . Unknown Exits Taken 16 | 1 1 1 1 1 1 1 1 1 1 1 1 1 1 1 1 . Scrap Searched 10 | . . . . . . . . . 1 1 . 2 3 . 3 . Spaces Dug 2 | . . . . . . . 1 1 . . . . . . . . Terrain Destroyed 520 | . . . . . 1 . 66 21 . . 332 100 . . . . Melee . | . . . . . . . . . . . . . . . . . Projectile 51 | . . . . . 1 . 29 21 . . . . . . . . AOE 469 | . . . . . . . 37 . . . 332 100 . . . . Terrain Rammed . | . . . . . . . . . . . . . . . . . Walls Destroyed . | . . . . . . . . . . . . . . . . . Machines Disabled . | . . . . . . . . . . . . . . . . . Actions | -11 -10 -10 -10 -9 -8 -7 -6 -5 -5 -5 -4 -4 -4 -4 -3 -3 --------- Run | Scr Mat Min Exi Min Mat Fac Fac Fac Upp Upp Fac Upp Upp Zhi Pro Res Total 10628 | 4 631 77 448 148 960 829 2527 720 678 151 1180 337 475 4 380 1079 Wait 1365 | . 103 . . . 195 81 572 142 11 . 94 4 11 . 1 151 Move 8226 | 4 480 77 445 133 661 685 1716 452 657 149 904 282 424 4 366 787 Hop . | . . . . . . . . . . . . . . . . . Pick Up 114 | . 11 . 1 6 9 9 24 4 1 1 24 4 3 . 5 12 Fast Attach 68 | . 3 . . . 3 3 8 8 2 . 25 2 2 . 2 10 Attach 81 | . 1 . 1 . 8 3 10 2 1 1 16 3 9 . 1 25 Detach 38 | . 3 . 1 . 6 1 2 1 1 . 8 1 . . . 14 Swap 139 | . 2 . . . 3 17 75 32 . . 8 . . . . 2 Drop 87 | . 8 . . 6 9 10 18 8 1 . 12 2 . . 1 12 Fire 447 | . 20 . . 3 65 20 102 59 4 . 74 17 26 . . 57 Melee 13 | . . . . . . . . . . . 13 . . . . . Ram 17 | . . . . . . . . 10 . . . . . . . 7 Kick 24 | . . . . . . . . 2 . . . 22 . . . . Crush 4 | . . . . . 1 . . . . . 1 . . . . 2 Escape Stasis . | . . . . . . . . . . . . . . . . . Rewire 5 | . . . . . . . . . . . 1 . . . 4 . Trap . | . . . . . . . . . . . . . . . . . Miscellaneous . | . . . . . . . . . . . . . . . . . Route ------- -11/Scrapyard -10/Materials (discovered 3 exits: [*Mat x2] / [*Min]) -10/Mines (discovered 2 exits: [*Mat] / *Exi) -10/Exiles -9/Mines -8/Materials -7/Factory -6/Factory (discovered 2 exits: *Fac x2) -5/Factory -5/Upper Caves -5/Upper Caves -4/Factory -4/Upper Caves -4/Upper Caves (discovered 2 exits: *Res / [*Zhi]) -4/Zhirov -3/Proximity Caves -3/Research History --------- Turn | Location | Event 1 | -11/Scrapyard | Discovered new exit (range 3) 6 | -11/Scrapyard | Entered Materials 126 | -10/Materials | Discovered new exit (range 16) 316 | -10/Materials | Build established: Mutant 446 | -10/Materials | Discovered new exit (range 11) 679 | -10/Materials | Discovered new exit (range 8) 824 | -10/Materials | Entered Mines 877 | -10/Mines | Learned location of Storage (-8) 925 | -10/Mines | Discovered new exit (range 15) 940 | -10/Mines | Deemed a non-threat by the Exiles lab entrance 941 | -10/Mines | Discovered new exit (range 5) 948 | -10/Mines | Entered Exiles 987 | -10/Exiles | Met 8R-AWN 1014 | -10/Exiles | Met EX-HEX 1076 | -10/Exiles | Met EX-DEC 1154 | -10/Exiles | Visited The Gauntlet 1377 | -10/Exiles | Met EX-BIN 1400 | -10/Exiles | Aligned with FarCom system 1401 | -10/Exiles | Given EX-Vault access code 1460 | -10/Exiles | Opened EX-Vault 1472 | -10/Exiles | Found Prototype Energy Cannon 1478 | -10/Exiles | Identified Gui. Plasma Cannon 1540 | -10/Exiles | Warned to stay clear of 0b10 Research branches 1647 | -10/Exiles | Discovered new exit (range 12) 1663 | -10/Exiles | Left Exiles lab with Gui. Plasma Cannon 1663 | -10/Exiles | Entered Mines 1709 | -9/Mines | Found a damaged Exp. Sensor Array with a note attached 1712 | -9/Mines | Found Prototype Device 1817 | -9/Mines | Discovered new exit (range 16) 1833 | -9/Mines | Met a Derelict shopkeep closing up shop 1891 | -9/Mines | Entered Materials 1891 | -8/Materials | Evolved 4 slots: Power x1, Utility x2, Weapon x1 1892 | -8/Materials | Identified Exp. Sensor Array 3479 | -8/Materials | Discovered new exit (range 10) 3499 | -8/Materials | Entered Factory 3499 | -7/Factory | Evolved 2 slots: Propulsion x1, Utility x1 4114 | -7/Factory | Fabricated I-25 Savior? 4311 | -7/Factory | Local fabrication network quarantined 4686 | -7/Factory | Discovered new exit (range 18) 4757 | -7/Factory | Entered another Factory area 4757 | -6/Factory | Evolved 2 slots: Utility x2 5154 | -6/Factory | Lost 4 parts (1p3u) 5572 | -6/Factory | Repaired Adv. Treads 5621 | -6/Factory | Repaired Med. Treads 5816 | -6/Factory | Discovered new exit (range 5) 5939 | -6/Factory | Found Prototype Launcher 5964 | -6/Factory | Identified Scatter Rocket Array 7626 | -6/Factory | Discovered new exit (range 17) 7938 | -6/Factory | Build established: Skirmisher 8607 | -6/Factory | First assault squad dispatched 8672 | -6/Factory | Entered another Factory area 8672 | -5/Factory | Evolved 2 slots: Propulsion x1, Utility x1 8731 | -5/Factory | Build established: Mutant 9347 | -5/Factory | Discovered new exit (range 10) 9410 | -5/Factory | Garrison activated, responded to threat 9771 | -5/Factory | Cargo convoy interrupted 9805 | -5/Factory | Entered Upper Caves 9818 | -5/Upper Caves | Encountered a Warlord checkpoint 9827 | -5/Upper Caves | Lost 19 parts (3p3n11u2w) 9987 | -5/Upper Caves | Attracted the attention of an 0b10 checkpoint 10050 | -5/Upper Caves | Learned Factory security intel 10142 | -5/Upper Caves | Discovered new exit (range 18) 10162 | -5/Upper Caves | Entered another Upper Caves area 10176 | -5/Upper Caves | Spotted B-75 Beast 10193 | -5/Upper Caves | Learned Factory interactive machine intel 10198 | -5/Upper Caves | Learned Factory stockpile data 10201 | -5/Upper Caves | Discovered new exit (range 17) 10239 | -5/Upper Caves | Entered Factory 10239 | -4/Factory | Evolved 2 slots: Utility x2 10242 | -4/Factory | Loaded intel: 48 interactive machine locations 10279 | -4/Factory | Discovered new exit (range 12) 10398 | -4/Factory | Found Quantum Capacitor 10673 | -4/Factory | Lost 6 parts (1p2n2u1w) 10928 | -4/Factory | Core integrity fell below 50% 10943 | -4/Factory | Lost 5 parts (1p1u3w) 11023 | -4/Factory | Cargo convoy interrupted 11064 | -4/Factory | Allied Derelicts emerged from ambush trap array 11073 | -4/Factory | Found Launcher Loader 11159 | -4/Factory | System corruption reached 10% 11239 | -4/Factory | First assault squad dispatched 11284 | -4/Factory | Lost 3 parts (2u1w) 11590 | -4/Factory | Entered Upper Caves 11741 | -4/Upper Caves | Spotted B-86 Titan 11761 | -4/Upper Caves | Destroyed B-86 Titan 11849 | -4/Upper Caves | Build established: Scavenger-Mutant 11861 | -4/Upper Caves | Lost 5 parts (2u3w) 11987 | -4/Upper Caves | Discovered new exit (range 15) 12000 | -4/Upper Caves | Entered another Upper Caves area 12064 | -4/Upper Caves | P-70 Sage assimilated allied MP-XAE(r) 12092 | -4/Upper Caves | Discovered new exit (range 11) 12116 | -4/Upper Caves | Lost 9 parts (3n4u2w) 12468 | -4/Upper Caves | Discovered new exit (range 14) 12480 | -4/Upper Caves | Entered Zhirov 12480 | -4/Zhirov | Discovered new exit (range 3) 12484 | -4/Zhirov | Entered Proximity Caves 12858 | -3/Proximity Caves | Discovered new exit (range 9) 12866 | -3/Proximity Caves | Entered Research 12866 | -3/Research | Evolved 2 slots: Utility x2 13002 | -3/Research | Found Quantum Capacitor 13235 | -3/Research | Build established: Hacker-Mutant 13524 | -3/Research | Found Prototype Device 13537 | -3/Research | Build established: Derelict-Mutant 13651 | -3/Research | Identified Exp. Thermal Shield 13684 | -3/Research | Spotted B-86 Titan 13769 | -3/Research | Garrison activated, responded to threat 13800 | -3/Research | System corruption reached 10% 13881 | -3/Research | Core integrity fell below 50% 13912 | -3/Research | Core integrity fell below 20% 13933 | -3/Research | Destroyed by S-43 Plague with Heavy Machine Gun Last Messages --------------- 13883_ Exp. Thermal Shield destroyed. 13884_ P-80 Master resets S-43 Plague, system corruption cleaned. 13885_ Adv. System Shield destroyed. 13889_ Acquired Prototype Device. 13890_ Identified Exp. Cooling System. 13899_ System corrupted: Heat flow error (+118). 13902_ Slug penetrates Wall. 13902_ Penetrated by Slug. 13902_ Focal Shield destroyed. 13906_ Slug penetrates G-67 Veteran. 13906_ K-01 Serf destroyed. 13906_ Penetrated by Slug. 13910_ K-01 Serf collects debris. 13917_ System corrupted: Heat flow error (+138). 13927_ Slammed into S-43 Plague. 13927_ Destabilizing: System interference. 13927_ Imp. Target Analyzer temporarily disabled. 13927_ Exp. Cooling System destroyed. 13928_ Slammed into S-43 Plague. 13932_ P-80 Master misfires. Map ----- +----------------------------------------------------+ | ?????????????????????????????????????????????????? | | ?????????????????????????????????????????????????? | | ?????????????????????????????????????????????????? | | ?????????????????????????????????????????????????? | | ?????????????????????????????????????????????????? | | ?????????????????????????????????????????????????? | | ?????????????????????????????????????????????????? | | ?????????????????????????????????????????????????? | | ?????????????????????????????????????????????????? | | ?????????????????????????????????????????????????? | | ?????????????????????????????????????????????????? | | ?????????????????????????????????????????????????? | | ?????????????????????????????????????????????????? | | ?????????????????????????????????????????????????? | | ?????????????????????????????????????????????????? | | ?????????????????????########????????????????????? | | ?????????????????????# = #????????????????????? | | ?????????????????????# #????????????????????? | | ?????????????????????# #????????????????????? | | ?????????????????????# #????????????????????? | | ?????????????????????# !#????????????????????? | | ?????????????????????# ss #????????????????????? | | ?" ??????????????????####/###????????????????????? | | ?" ????????????????????#s#??????????????????????? | | "" ???????????????????#s#??????????????????????? | | ####+###############@#??????????????????????? | | ps#??????????????????????? | | #######??????????????????????? | | #????????????????????????????? | | #????????????????????????????? | | ???###### ####g######?????????????????????????? | | ????????# # h !#?????????????????????????? | | ????????# # ! #?????????????????????????? | | ????????# gb #?????????????????????????? | | ????????# # #?????????????????????????? | | ????????# # w?????????????????????????? | | ????????# h#? #?????????????????????????? | | ????????# h#??] #?????????????????????????? | | ????????# #??? #?????????????????????????? | | ????????# #???#######?????????????????????????? | | ????????#! #???????????????????????????????????? | | ????????#%= ########????????????????????????????? | | ????????#= ?????????????????????? | | ????????# ########????????????????????????????? | | ????????# #???????????????????????????????????? | | ????????# #???????????????????????????????????? | | ######### ########????????????????????????????? | | #????????????????????????????? | | #????????????????????????????? | | #????????##??????????????????? | +----------------------------------------------------+ Best States ------------- Heat Dissipation 81 Coolant Potential 100 Energy Generation 34 Energy Capacity 500 Matter Stores 300 Matter Capacity 300 Sight Range 22 Robot Scan Range 20 Terrain Scan Range 20 Terrain Scan Density 210 Cloak Strength 2 Additional Mass Support 12 Corruption Prevention 20 Armor Coverage 225 Resistance: KI 30 Resistance: TH 30 Resistance: EX 25 Resistance: EM 25 Weapon Shielding 66 Phase Shifting 5 Evasion (%) 55 Targeting Accuracy 6 Target Analysis 6 Armor Integrity Analysis 20 Recoil Reduction 3 Particle Charging 20 Offensive Hacking 12 Defensive Hacking 24 Item Schematics ----------------- Antimatter Cannon | -6/Factory | Scanalyzed EM Shield | -5/Factory | Scanalyzed Robot Schematics ------------------ None Fabricated ------------ I-25 Savior | x1 | -7/Factory | Preloaded Alien Tech Used ----------------- None Achievements -------------- Oh No You Don't! Preemptive Strike Challenges ------------ None Game ------ Seed DeepSiegeCompressor Manual? 0 Play Time 04:08:25 Cumulative 70.6 hours Start 2021.06.09 @ 02:12:47 End 2021.06.10 @ 17:38:31 Sessions 7 Manual Loads 0 Difficulty Rogue Special Mode None Game No. 54 Rogue 54 Adventurer 0 Explorer 0 Win Type - Total 0 Types 0/0/0/0/0/0/0/0/0 Lore% 39 Gallery% 49 Achievement% 31 Wizard Run 0 Options --------- ASCII 0 Keyboard 1 Movement Numpad Keybinds 0 Fullscreen 2 Font 18/SmallcapsGlow Map View 76x50 Tactical HUD 1 Map Filters NONE Filters NONE Steam 1 RUN: 96e1f466-863f-477b-8e91-11ebdc29033e